fUSD/lending_fUSD_20240104
["ID","MTS","AMOUNT","RATE_DAILY","PERIOD"]
[310106252,1704341438302,-375.96584725,0.000229,2]
[310106253,1704341438314,-15301.35191134,0.000229,2]
[310106254,1704341438336,-1285.22235789,0.000229,2]
[310106255,1704341438348,-951.26132272,0.000229,2]
[310106256,1704341438364,-1045.21450603,0.000229,2]
[310106257,1704341438376,-680.31421281,0.000229,2]
[310106258,1704341438388,-405.63416543,0.000229,2]
[310106259,1704341438400,-551.98804574,0.000229,2]
[310106260,1704341438418,-25177.57347804,0.000229,2]
[310106261,1704341438428,-273.64398205,0.000229,2]
[310106262,1704341438437,-154.06571449,0.00022907,2]
[310106263,1704341438447,-154.06571449,0.00022915,2]
[310106264,1704341438456,-154.06571449,0.00022922,2]
[310106265,1704341438465,-4236.39981998,0.0002293,2]
[310106266,1704341438475,-154.06571449,0.0002293,2]
[310106267,1704341438485,-622.65068948,0.0002293,2]
[310106268,1704341438494,-193.78895438,0.0002293,2]
[310106269,1704341438504,-651.3899529,0.0002293,2]
[310106270,1704341438513,-718.2752916,0.0002293,2]
[310106271,1704341438523,-189.87787036,0.0002293,6]
[310106272,1704341438533,-67670.03285349,0.00022997,2]
[310106273,1704341438542,-156.07693324,0.00022998,2]
[310106274,1704341438552,-407.96601908,0.00022998,2]
[310106275,1704341438561,-2240.88680525,0.00022998,2]
[310106276,1704341438571,-698.57867378,0.00022998,2]
[310106277,1704341438580,-278.13734884,0.00022998,2]
[310106278,1704341438601,-155.85873922,0.00022998,2]
[310106279,1704341438624,-2306.28360028,0.00022998,2]
[310106280,1704341438634,-1251.74926567,0.00022998,2]
[310106281,1704341438644,-155.40803254,0.00022998,2]
[310106282,1704341438653,-155.0,0.00022998,2]
[310106283,1704341438662,-3315.35983299,0.00022998,2]
[310106284,1704341438672,-1328.58401684,0.00022998,2]
[310106285,1704341438682,-259.08563159,0.00022998,2]
[310106286,1704341438692,-155.59524493,0.00022998,2]
[310106287,1704341438702,-359.9523102,0.00022998,2]
[310106288,1704341438711,-407.29221327,0.00022998,2]
[310106290,1704341438721,-263.73380203,0.00022998,2]
[310106292,1704341438730,-158.02003949,0.00022998,2]
[310106293,1704341438741,-493.94880591,0.00022999,2]
[310106294,1704341438751,-1001.88283437,0.00022999,2]
[310106295,1704341438761,-977.80030805,0.00022999,2]
[310106296,1704341438771,-283912.76860315,0.00023,2]
[310106297,1704341438781,-459219.48478812,0.00023,2]
[310106298,1704341438807,-301923.84085912,0.00023,2]
[310106299,1704341438828,-311.21120683,0.00023,2]
[310106300,1704341438843,-1085.41820824,0.00023,2]
[310106301,1704341438857,-1449.69347089,0.00023,2]
[310106302,1704341438884,-664.40670792,0.00023,2]
[310106304,1704341441421,-804.29,0.00023,2]
[310106305,1704341441433,-401.62608621,0.00023,2]
[310106306,1704341441445,-271.33310921,0.00023,2]
[310106316,1704341443072,-1312.43827953,0.00023,2]
[310106317,1704341443448,-637.35586639,0.00023,2]
[310106318,1704341443460,-1018.71159796,0.00023,2]
[310106319,1704341443472,-394.52126053,0.00023,2]
[310106320,1704341443489,-981013.77616369,0.00023,2]
[310106321,1704341443501,-4224.49257586,0.00023,2]
[310106322,1704341443514,-748.77934784,0.00023,2]
[310106323,1704341443527,-256.974,0.00023,2]
[310106329,1704341446141,-343.01599441,0.00022999,2]
[310106330,1704341446151,-440.82730679,0.00023,2]
[310106331,1704341446199,-10991.93218859,0.00023,2]
[310106332,1704341446212,-1014.7081131,0.00023,2]
[310106333,1704341446224,-52946.07043832,0.00023,2]
[310106334,1704341446315,-544.10113656,0.00023,2]
[310106335,1704341446430,-253.59009944,0.00023,2]
[310106336,1704341446454,-1233.09058382,0.00023,2]
[310106338,1704341460931,811.88913259,0.00022078,2]
[310106339,1704341475844,500.0,0.000229,8]
[310106353,1704342436506,500.0,0.000228,8]
[310106354,1704342438587,1000.0,0.000229,8]
[310106367,1704342632246,-150.0,0.00022686,2]
[310106368,1704342632256,-150.0,0.00022897,2]
[310106369,1704342632267,-155.0,0.00022898,2]
[310106370,1704342632276,-47.88675972,0.00022898,2]
[310106371,1704342632337,-216.65525326,0.00022898,2]
[310106372,1704342632347,-111.59736847,0.00022898,2]
[310106373,1704342632362,-118.94223055,0.00022898,2]
[310106374,1704342632372,-3846.00581784,0.00022898,2]
[310106375,1704342632382,-284.37652199,0.00022898,2]
[310106376,1704342632392,-530.49786083,0.00022898,2]
[310106377,1704342632401,-155.0,0.00022898,2]
[310106378,1704342632411,-183.09522096,0.00022899,2]
[310106379,1704342632420,-377.14093631,0.00022899,2]
[310106380,1704342632430,-712.83708107,0.00022899,2]
[310106381,1704342632440,-260.45433045,0.000229,2]
[310106382,1704342632452,-300.0,0.000229,2]
[310106383,1704342632470,-879.76098058,0.000229,2]
[310106384,1704342632482,-559.71247832,0.000229,2]
[310106385,1704342632494,-811.88913259,0.000229,2]
[310106386,1704342632505,-6652.04401135,0.000229,2]
[310106387,1704342632518,-270.98804803,0.000229,2]
[310106388,1704342632533,-40159.47101868,0.000229,2]
[310106389,1704342632543,-213.48669747,0.0002299,2]
[310106390,1704342632553,-194.14566676,0.00022998,2]
[310106391,1704342632562,-233.56810335,0.00022998,2]
[310106392,1704342632572,-5347.33927379,0.00022998,2]
[310106393,1704342632583,-155.0,0.00022998,2]
[310106394,1704342632594,-361.65575271,0.00022999,2]
[310106395,1704342632603,-465044.55065085,0.00022999,2]
[310106396,1704342632613,-300.0,0.00022999,2]
[310106397,1704342632623,-300.0,0.00022999,2]
[310106399,1704342632633,-300.0,0.00022999,2]
[310106401,1704342632643,-300.0,0.00022999,2]
[310106403,1704342632652,-300.0,0.00022999,2]
[310106405,1704342632663,-300.0,0.00022999,2]
[310106407,1704342632672,-300.0,0.00022999,2]
[310106409,1704342632681,-303.25862546,0.00022999,2]
[310106411,1704342632691,-818.48752655,0.00022999,5]
[310106413,1704342632701,-280229.4600835,0.00023,2]
[310106417,1704342632723,-546.06149217,0.00023,2]
[310106419,1704342632734,-431.18512968,0.00023,2]
[310106427,1704342638268,-731.0,0.00023,2]
[310106428,1704342638354,-468915.14688369,0.00023,2]
[310106429,1704342638365,-8755.44,0.00023,2]
[310106430,1704342638374,-3883.36650163,0.0002303,2]
[310106431,1704342638384,-330.0,0.0002313,2]
[310106432,1704342638393,-1380.47,0.0002313,2]
[310106433,1704342638403,-157.4,0.00023985,2]
[310106434,1704342638413,-430.24132448,0.00024,2]
[310106435,1704342638422,-3883.36650159,0.00024109,2]
[310106436,1704342638432,-3677.08,0.00024614,2]
[310106437,1704342638441,-208.0,0.00024786,2]
[310106438,1704342638451,-427.03,0.00024866,2]
[310106439,1704342638461,-201.39591919,0.00025,2]
[310106440,1704342638470,-288.97992833,0.00025,2]
[310106441,1704342638480,-695.168983,0.00025,2]
[310106442,1704342638489,-1249.8543714,0.00025,2]
[310106443,1704342638498,-166.80734122,0.00025,2]
[310106444,1704342638508,-3883.36650159,0.00025188,2]
[310106445,1704342638517,-1367.0,0.000254,2]
[310106446,1704342638526,-11745.0,0.000254,2]
[310106447,1704342638536,-157.4,0.000254,2]
[310106448,1704342638545,-3883.36650159,0.00026267,2]
[310106449,1704342638553,-167.86,0.00026754,2]
[310106450,1704342638562,-157.4,0.00026815,2]
[310106451,1704342638571,-150.0,0.00026838,2]
[310106452,1704342638581,-8432.22,0.00026847,2]
[310106453,1704342638592,-258.95,0.00026932,2]
[310106454,1704342638601,-800.0,0.00026956,2]
[310106455,1704342638610,-222.54938428,0.00027,2]
[310106456,1704342638620,-350.0,0.00027,3]
[310106457,1704342638629,-192.01,0.00027067,2]
[310106458,1704342638639,-154.13,0.00027072,2]
[310106459,1704342638648,-333.61,0.00027074,2]
[310106460,1704342638657,-250.0,0.00027074,2]
[310106461,1704342638667,-427.03,0.0002713,2]
[310106462,1704342638676,-200.0,0.00027272,2]
[310106463,1704342638685,-3883.36650159,0.00027346,2]
[310106464,1704342638694,-157.29,0.00027652,2]
[310106465,1704342638704,-183.09522094,0.00027788,2]
[310106466,1704342638713,-890.91,0.00027945,2]
[310106467,1704342638722,-1260.03,0.00027945,2]
[310106468,1704342638732,-1051.93544071,0.00028042,3]
[310106469,1704342638741,-333.61,0.00028053,2]
[310106471,1704342638750,-3883.36650159,0.00028425,2]
[310106473,1704342638759,-882.0,0.0002892,2]
[310106475,1704342638768,-400.0,0.00029,3]
[310106477,1704342638777,-333.61,0.00029031,2]
[310106479,1704342638786,-427.03,0.00029394,2]
[310106481,1704342638795,-3883.36650159,0.00029505,2]
[310106483,1704342638805,-154.01,0.00029619,2]
[310106485,1704342638813,-379.0,0.00029633,5]
[310106487,1704342638823,-1051.93544071,0.00029757,4]
[310106489,1704342638831,-154.13,0.00029779,2]
[310106491,1704342638840,-681.6710574,0.0003,4]
[310106493,1704342638850,-31072.0,0.0003,3]
[310106495,1704342638861,-254.90083071,0.0003,4]
[310106497,1704342638870,-3000.0,0.0003,2]
[310106499,1704342638879,-333.61,0.0003001,2]
[310106501,1704342638888,-205.99,0.00030058,2]
[310106503,1704342638898,-153.84,0.00030137,2]
[310106505,1704342638907,-800.0,0.00030326,2]
[310106507,1704342638916,-3883.36650159,0.00030584,2]
[310106508,1704342638925,-200.0,0.00030681,2]
[310106509,1704342638934,-151.0,0.00030696,120]
[310106510,1704342638943,-1500.0,0.000309,11]
[310106511,1704342638952,-434.2599686,0.000309,2]
[310106512,1704342638962,-333.61,0.00030988,2]
[310106513,1704342638971,-153037.67928385,0.00031,2]
[310106514,1704342638984,-196962.90077384,0.00031,2]
[310106515,1704342638994,-450.0,0.00031,3]
[310106516,1704342639003,-264.36,0.00031,2]
[310106517,1704342639012,-153.84,0.0003105,2]
[310106518,1704342639021,-154.01,0.000311,2]
[310106520,1704342639030,-205.99,0.00031152,2]
[310106522,1704342639039,-958.19,0.00031189,2]
[310106524,1704342639048,-151.40104,0.00031298,2]
[310106526,1704342639057,-151.0,0.00031322,30]
[310106528,1704342639066,-151.40104,0.00031398,2]
[310106530,1704342639076,-1051.93544071,0.00031471,5]
[310106532,1704342639085,-151.40104,0.00031498,2]
[310106534,1704342639094,-151.40104,0.00031598,2]
[310106536,1704342639103,-427.03,0.00031658,2]
[310106538,1704342639113,-3883.36650159,0.00031663,3]
[310106540,1704342639121,-151.40104,0.00031698,2]
[310106541,1704342639130,-500.0,0.0003178,2]
[310106543,1704342639139,-157.40104,0.00031798,2]
[310106545,1704342639148,-208.0,0.00031829,13]
[310106547,1704342639157,-157.40104,0.00031898,2]
[310106549,1704342639166,-151.78795492,0.000319,2]
[310106551,1704342639175,-151.7879547,0.000319,2]
[310106553,1704342639184,-151.7879547,0.000319,2]
[310106556,1704342639194,-151.7879547,0.000319,2]
[310106558,1704342639203,-151.7879547,0.000319,2]
[310106559,1704342639212,-151.7879547,0.000319,2]
[310106561,1704342639222,-151.7879547,0.000319,2]
[310106564,1704342639232,-151.7879547,0.000319,2]
[310106566,1704342639242,-151.7879547,0.000319,2]
[310106568,1704342639251,-151.7879547,0.000319,2]
[310106569,1704342639260,-882.0,0.0003192,2]
[310106572,1704342639270,-151.0,0.00031961,7]
[310106574,1704342639279,-153.84,0.00031963,2]
[310106576,1704342639289,-333.61,0.00031967,2]
[310106578,1704342639298,-157.40104,0.00031998,2]
[310106580,1704342639307,-151.66984409,0.00031999,2]
[310106582,1704342639316,-179.82017932,0.00032,4]
[310106584,1704342639325,-800.0033223,0.00032,4]
[310106586,1704342639334,-501.32761144,0.00032,2]
[310106588,1704342639344,-501.32761144,0.00032,2]
[310106590,1704342639352,-501.32761144,0.00032,2]
[310106592,1704342639362,-151.40104,0.00032098,2]
[310106594,1704342639371,-151.7879547,0.00032195,2]
[310106596,1704342639380,-151.40104,0.00032198,2]
[310106598,1704342639389,-205.99,0.00032247,2]
[310106600,1704342639399,-157.40104,0.00032298,2]
[310106602,1704342639408,-157.40104,0.00032398,2]
[310106603,1704342639418,-192.01,0.0003248,2]
[310106605,1704342639427,-151.40104,0.00032498,2]
[310106607,1704342639436,-310.52450658,0.00032498,4]
[310106609,1704342639446,-25429.21737688,0.00032558,4]
[310106611,1704342639455,-154.01,0.00032581,2]
[310106613,1704342639465,-151.40104,0.00032598,2]
[310106615,1704342639474,-151.0,0.00032614,4]
[310106617,1704342639483,-183.09522094,0.00032676,2]
[310106619,1704342639494,-155.0,0.00032698,2]
[310106621,1704342639503,-478.75918192,0.00032698,4]
[310106624,1704342639513,-966.21395085,0.00032698,4]
[310106625,1704342639522,-201.1462497,0.00032698,4]
[310106627,1704342639531,-162.00505096,0.00032698,4]
[310106629,1704342639540,-56877.32993181,0.00032698,2]
[310106631,1704342639550,-151.40104,0.00032698,2]
[310106633,1704342639559,-2960.30739139,0.000327,2]
[310106636,1704342639572,-640.83251762,0.000327,2]
[310106639,1704342639590,-45983.65350668,0.000327,2]
[310106641,1704342639606,-432.6937187,0.000327,2]
[310106644,1704342639617,-2461.16702176,0.000327,2]
[310106646,1704342639629,-3980.46536542,0.000327,2]
[310106648,1704342639641,-846.41713327,0.000327,2]
[310106651,1704342639657,-2148.29056394,0.000327,2]
[310106666,1704342639793,-10778.39020876,0.000327,2]
[310106823,1704342641548,-316.51368807,0.000327,2]
[310106824,1704342641604,-2864.08439039,0.000327,2]
[310106825,1704342641616,-404.21858762,0.000327,2]
[310106826,1704342641661,-37775.09413293,0.000327,2]
[310106832,1704342643330,-1433.665282,0.000327,2]
[310106833,1704342643492,-1412.18415497,0.000327,2]
[310106834,1704342643602,-526.2500001,0.000327,2]
[310106837,1704342646313,-415.10045966,0.00032676,2]
[310106838,1704342646323,-1192.07060234,0.000327,2]
[310106839,1704342646369,-749.52280967,0.000327,2]
[310106840,1704342646382,-301.55361361,0.000327,2]
[310106841,1704342646395,-1116.89769327,0.000327,2]
[310106842,1704342646481,-1625.76169936,0.000327,2]
[310106843,1704342646495,-362.84292556,0.000327,2]
[310106844,1704342646507,-1399.0500003,0.000327,2]
[310106845,1704342646518,-299.12354907,0.000327,2]
[310106846,1704342646538,-1834.83887827,0.000327,2]
[310106847,1704342646550,-714.87905525,0.000327,2]
[310106848,1704342646601,-1570.38300814,0.000327,2]
[310106849,1704342646613,-670.67795625,0.000327,2]
[310106850,1704342646624,-151.0,0.000327,7]
[310106851,1704342646633,-500.0,0.000327,7]
[310106852,1704342646643,-500.0,0.000327,7]
[310106853,1704342646652,-196.776262,0.000327,7]
[310106854,1704342646663,-151.0,0.000327,7]
[310106855,1704342646674,-151.0,0.000327,7]
[310106856,1704342646683,-151.0,0.000327,7]
[310106857,1704342646693,-205.015166,0.000327,7]
[310106858,1704342646702,-151.0,0.000327,7]
[310106859,1704342646712,-151.0,0.000327,7]
[310106860,1704342646721,-151.0,0.000327,7]
[310106861,1704342646730,-208.56363525,0.000327,2]
[310106862,1704342646741,-208.56363514,0.000327,2]
[310106863,1704342646750,-208.56363514,0.000327,2]
[310106864,1704342646760,-208.56363514,0.000327,2]
[310106865,1704342646769,-208.56363514,0.000327,2]
[310106866,1704342646778,-208.56363514,0.000327,2]
[310106867,1704342646787,-208.56363514,0.000327,2]
[310106868,1704342646796,-208.56363514,0.000327,2]
[310106869,1704342646806,-208.56363514,0.000327,2]
[310106870,1704342646815,-208.56363514,0.000327,2]
[310106871,1704342646825,-208.56363514,0.000327,2]
[310106872,1704342646834,-208.56363514,0.000327,2]
[310106873,1704342646844,-208.56363514,0.000327,2]
[310106874,1704342646854,-208.56363514,0.000327,2]
[310106875,1704342646863,-208.56363514,0.000327,2]
[310106876,1704342646873,-208.56363514,0.000327,2]
[310106877,1704342646882,-208.56363514,0.000327,2]
[310106878,1704342646891,-208.56363514,0.000327,2]
[310106879,1704342646901,-208.56363514,0.000327,2]
[310106880,1704342646910,-78.73276366,0.00032742,4]
[310106881,1704342646923,-263.04335995,0.00032742,4]
[310106882,1704342646943,-476.43080878,0.00032742,4]
[310106883,1704342646964,-3065.1595692,0.00032742,4]
[310106884,1704342646974,-6537.61906866,0.00032773,2]
[310106885,1704342646984,-1424.24937271,0.00032774,2]
[310106886,1704342646994,-430.321805,0.00032774,4]
[310106907,1704343686058,208.0,0.00021786,2]
[310106912,1704343713803,208.00002,0.00021786,2]
[310106959,1704343831471,-201.39591919,0.00027194,2]
[310106961,1704343831481,-430.24132448,0.00027195,2]
[310106963,1704343831490,-499.42173977,0.00027196,2]
[310106965,1704343831503,-210.86826023,0.00027196,2]
[310106966,1704343831513,-608.69988561,0.00027198,2]
[310106992,1704343837651,-430.24132448,0.00027193,2]
[310106993,1704343837661,-113.14011439,0.00027198,2]
[310106994,1704343837671,-731.52,0.00027198,2]
[310106995,1704343837680,-726.31,0.00027198,2]
[310106996,1704343837690,-500.0,0.00028548,2]
[310106997,1704343837699,-310.875,0.0002891,2]
[310106998,1704343837709,-543.387,0.0002891,2]
[310106999,1704343837719,-2907.969,0.0002891,2]
[310107000,1704343837729,-156.0,0.0002891,2]
[310107001,1704343837742,-250.0,0.0002891,2]
[310107002,1704343837752,-225.621,0.0002891,2]
[310107003,1704343837761,-197.0,0.0002891,2]
[310107004,1704343837771,-1026.0,0.0002891,2]
[310107005,1704343837782,-170.0,0.0002891,2]
[310107006,1704343837792,-162.272,0.0002891,2]
[310107007,1704343837801,-214.862,0.0002891,2]
[310107008,1704343837811,-235.619,0.0002891,2]
[310107009,1704343837821,-150.384,0.0002891,2]
[310107010,1704343837831,-725.19,0.00029361,2]
[310107011,1704343837841,-500.0,0.00029459,2]
[310107012,1704343837851,-300.0,0.00029999,2]
[310107013,1704343837861,-614.84,0.00029999,2]
[310107014,1704343837871,-254.90083071,0.0003,4]
[310107015,1704343837881,-681.6710574,0.00030368,4]
[310107016,1704343837890,-150.99,0.00030369,2]
[310107017,1704343837900,-500.0,0.0003037,2]
[310107018,1704343837909,-154.01,0.00030789,2]
[310107019,1704343837919,-520.0,0.00030899,2]
[310107020,1704343837928,-192.01,0.0003094,2]
[310107021,1704343837938,-150.0,0.00031,2]
[310107022,1704343837948,-151.0,0.00031006,120]
[310107023,1704343837957,-742.42,0.00031016,2]
[310107024,1704343837967,-234.29,0.00031072,2]
[310107025,1704343837976,-480.0,0.00031074,2]
[310107026,1704343837985,-154.01,0.00031095,2]
[310107027,1704343837995,-1050.02,0.00031118,2]
[310107028,1704343838004,-500.0,0.00031281,2]
[310107029,1704343838014,-208.0,0.0003134,16]
[310107030,1704343838023,-11711.5,0.00031426,2]
[310107031,1704343838035,-158.04,0.00031603,2]
[310107032,1704343838044,-151.0,0.00031639,30]
[310107033,1704343838054,-150.0,0.0003191,2]
[310107034,1704343838064,-150.0,0.0003191,2]
[310107036,1704343838073,-179.82017932,0.00032049,4]
[310107037,1704343838082,-234.29,0.0003205,2]
[310107038,1704343838092,-500.0,0.00032192,2]
[310107039,1704343838105,-151.40104,0.00032198,2]
[310107040,1704343838114,-151.0,0.00032285,7]
[310107041,1704343838124,-151.40104,0.00032298,2]
[310107042,1704343838133,-223.0,0.00032332,3]
[310107043,1704343838143,-151.04197079,0.00032398,2]
[310107045,1704343838152,-1203.90762678,0.00032411,14]
[310107047,1704343838161,-1249.34660581,0.00032411,2]
[310107049,1704343838170,-157.40104,0.00032498,2]
[310107050,1704343838180,-310.52450658,0.00032498,4]
[310107051,1704343838189,-501.32761144,0.00032564,2]
[310107052,1704343838198,-406.4903675,0.00032564,2]
[310107053,1704343838207,-660.6361103,0.00032574,2]
[310107054,1704343838226,-71615.1037897,0.00032574,2]
[310107055,1704343838235,-1483.7365,0.00032575,2]
[310107056,1704343838244,-205.3169,0.00032575,2]
[310107057,1704343838254,-3355.9205099,0.00032595,7]
[310107058,1704343838263,-1000.0,0.00032595,7]
[310107059,1704343838272,-167.79602549,0.00032595,7]
[310107060,1704343838282,-1199.95645563,0.00032595,7]
[310107061,1704343838292,-157.40104,0.00032598,2]
[310107062,1704343838301,-183.09522094,0.00032598,2]
[310107063,1704343838310,-501.32761144,0.00032664,2]
[310107064,1704343838320,-406.4903675,0.00032664,2]
[310107065,1704343838329,-23970.43566468,0.00032665,4]
[310107066,1704343838346,-1215.25070052,0.00032665,4]
[310107067,1704343838361,-960.31382113,0.00032665,4]
[310107068,1704343840599,-362.97,0.00029787,2]
[310107069,1704343840610,-121.32600592,0.00032051,2]
[310107070,1704343840653,-241.64399408,0.00032051,2]
[310107071,1704343840663,-371.97630321,0.00032665,4]
[310107072,1704343840675,-10803.75222187,0.00032665,4]
[310107073,1704343840710,-1560.66442359,0.00032665,4]
[310107074,1704343840720,-418.2430523,0.00032665,2]
[310107075,1704343840733,-83.08455914,0.00032665,2]
[310107076,1704343840742,-406.4903675,0.00032665,2]
[310107077,1704343840752,-22.24302561,0.00032666,4]
[310107078,1704343840764,-738.70204546,0.00032666,4]
[310107079,1704343840777,-2016.36872429,0.00032666,4]
[310107080,1704343840787,-155.0,0.00032673,2]
[310107081,1704343840797,-478.75918192,0.00032673,4]
[310107082,1704343840807,-162.00505096,0.00032673,4]
[310107083,1704343840817,-966.21395085,0.00032673,4]
[310107084,1704343840826,-201.1462497,0.00032673,4]
[310107085,1704343840836,-17242.50684228,0.00032674,5]
[310107086,1704343840849,-8094.10953144,0.00032674,5]
[310107087,1704343840861,-406.21240644,0.00032674,5]
[310107088,1704343840873,-3257.17121984,0.00032674,5]
[310107089,1704343840884,-23626.73464723,0.00032675,2]
[310107090,1704343840896,-2000.88344355,0.00032675,2]
[310107091,1704343840913,-461.41132526,0.00032675,2]
[310107102,1704343842677,-3005.81255929,0.00032675,2]
[310107104,1704343844676,1350.19576929,0.00021786,2]
[310107106,1704343845804,-419.57986073,0.00032674,4]
[310107107,1704343845814,-222.00769213,0.00032675,2]
[310107109,1704343863761,204.99998,0.00021786,2]
[310107110,1704343900638,3961.7,0.000225,2]
[310107111,1704343924509,208.00002,0.00021786,2]
[310107112,1704343928752,3961.7,0.00029,30]
[310107119,1704344197071,150.0,0.00022,2]
[310107128,1704344453706,6898.047548,0.00022456,2]
[310107129,1704344492614,167.02,0.00021687,2]
[310107130,1704344605123,351.46,0.00022,2]
[310107131,1704344608967,500.0,0.00022,2]
[310107136,1704344831138,400.0,0.000226,8]
[310107137,1704344833225,900.0,0.000227,8]
[310107138,1704344835315,1300.0,0.000228,8]
[310107139,1704344837406,1800.0,0.000229,8]
[310107143,1704344895334,423.1,0.00021023,2]
[310107145,1704344922529,1861.68211531,0.00022998,30]
[310107151,1704344973108,-433.83934057,0.00022554,2]
[310107170,1704345031987,-547.94137977,0.00022548,2]
[310107171,1704345031997,-324.23562515,0.00022549,2]
[310107177,1704345032041,-232.9789254,0.00022549,2]
[310107179,1704345032053,-552.75341545,0.0002255,2]
[310107181,1704345032063,-214.95737211,0.00022551,2]
[310107183,1704345032072,-171.40095566,0.00022552,2]
[310107185,1704345032082,-196.15618364,0.00022553,2]
[310107187,1704345032092,-846.0,0.00022554,2]
[310107189,1704345032101,-153.25747771,0.000228,2]
[310107191,1704345032111,-153.2574777,0.00022865,2]
[310107192,1704345032120,-7484.12185834,0.00022899,2]
[310107193,1704345032136,-8659.4844,0.00022899,2]
[310107195,1704345032148,-567.54025397,0.00022899,2]
[310107196,1704345032167,-2169.42663352,0.00022899,2]
[310107197,1704345032179,-14413.71147409,0.00022899,2]
[310107198,1704345032189,-300.0,0.000229,2]
[310107199,1704345032198,-1051.93544071,0.000229,2]
[310107200,1704345032208,-3877.21136937,0.000229,2]
[310107201,1704345032217,-119778.95274547,0.000229,2]
[310107202,1704345032226,-355.73270651,0.000229,2]
[310107203,1704345032235,-283.89517243,0.000229,2]
[310107204,1704345032245,-283.89517243,0.00022908,2]
[310107205,1704345032254,-283.89517243,0.00022915,2]
[310107206,1704345032264,-499.99,0.00022923,2]
[310107207,1704345032275,-283.89517243,0.00022923,2]
[310107208,1704345032284,-153.2574777,0.0002293,2]
[310107209,1704345032294,-746.83697842,0.0002293,2]
[310107210,1704345032531,-180.95051568,0.0002293,2]
[310107211,1704345032543,-283.89517243,0.0002293,2]
[310107212,1704345032553,-152.46731911,0.00022999,2]
[310107213,1704345032562,-152.46731911,0.00022999,2]
[310107214,1704345032576,-152.46731911,0.00022999,2]
[310107215,1704345032587,-152.46731911,0.00022999,2]
[310107216,1704345032596,-152.46731911,0.00022999,2]
[310107217,1704345032605,-152.46731911,0.00022999,2]
[310107218,1704345032615,-152.46731911,0.00022999,2]
[310107219,1704345032624,-152.46731911,0.00022999,2]
[310107220,1704345032634,-152.46731911,0.00022999,2]
[310107221,1704345032644,-152.46731911,0.00022999,2]
[310107222,1704345032659,-152.46731911,0.00022999,2]
[310107223,1704345032675,-152.46731911,0.00022999,2]
[310107224,1704345032685,-152.46731911,0.00022999,2]
[310107225,1704345032695,-152.46731911,0.00022999,2]
[310107226,1704345032705,-152.46731911,0.00022999,2]
[310107227,1704345032714,-152.46731911,0.00022999,2]
[310107228,1704345032724,-152.46731911,0.00022999,2]
[310107229,1704345032734,-152.46731911,0.00022999,2]
[310107230,1704345032744,-152.46731911,0.00022999,2]
[310107231,1704345032754,-152.46731911,0.00022999,2]
[310107232,1704345032763,-152.46731911,0.00022999,2]
[310107233,1704345032773,-152.46731911,0.00022999,2]
[310107234,1704345032783,-3576.68550241,0.00022999,2]
[310107235,1704345032793,-1059676.58389032,0.00023,2]
[310107236,1704345032808,-118345.10054048,0.00023,2]
[310107240,1704345037736,-267824.27463055,0.00023,2]
[310107241,1704345037746,-325.27779495,0.00023,2]
[310107242,1704345037756,-466227.26096577,0.00023,2]
[310107243,1704345037768,-301923.84085912,0.00023,2]
[310107244,1704345037949,-1763.7188,0.00023,2]
[310107247,1704345040733,-53275.27218762,0.00023,2]
[310107248,1704345040788,-305.10484653,0.00023,2]
[310107251,1704345042615,-276.73363976,0.0002293,2]
[310107252,1704345042628,-723.26636024,0.00022999,2]
[310107253,1704345042939,-864.0,0.00022999,2]
[310107254,1704345042953,-355.73270651,0.00022999,2]
[310107264,1704345045823,-826.4438084,0.00022999,2]
[310107265,1704345045836,-319.31715993,0.00022999,2]
[310107266,1704345045881,-325.27779495,0.00022999,2]